[Event "SixDays Budapest IM-A 10-2024"]
[Site "Budapest"]
[Date "2024.10.01"]
[Round "2.1"]
[White "Krishna C R G"]
[Black "Valkova, Angelika"]
[Result "1-0"]
[ECO "A06"]
[WhiteElo "2425"]
[BlackElo "2068"]
[Annotator "TA"]
[PlyCount "77"]
[EventDate "2024.09.24"]
[EventType "tourn"]
[EventCountry "HUN"]
[SourceTitle "playchess.com"]
[Source "ChessBase"]
[SourceQuality "1"]
[TimeControl "5400+30"]

{[%evp 9,77,29,21,22,16,21,33,36,42,35,46,26,39,19,29,18,18,0,4,8,0,0,0,0,-14,-15,-5,-35,-17,-31,-26,-46,0,0,0,0,71,64,147,97,92,30,29,25,22,15,3,6,3,6,13,0,114,-69,354,209,299,340,694,682,856,798,2481,2227,29987,29988,29988,29989,29989,5047]} 1. Nf3 {[%emt 0:00:36]} d5 {[%emt 0:00:03]} 2. e3 {[%emt 0:00:06]} Nf6 {[%emt 0:00:20]} 3. c4 {[%emt 0:00:20]} e6 {[%emt 0:00:06]} 4. b3 {[%emt 0:00:05]} dxc4 {[%emt 0:00:06]} 5. Bxc4 {[%emt 0:00:28]} c5 {[%emt 0:00:05]} 6. Bb2 {[%emt 0:00:22]} b6 {[%emt 0:02:09]} 7. O-O {[%emt 0:06:06]} Be7 {[%emt 0:02:00]} 8. Ne5 {[%emt 0:04:19] Threatens to win with Qf3. White is slightly better.} O-O {[%emt 0:01:32]} 9. Qf3 {[%emt 0:00:02] Prevents Bb7.} Nd5 {[%emt 0:00:26]} 10. Nc3 {[%emt 0:00:22]} Bb7 {[%emt 0:02:37]} 11. Qg3 {[%emt 0:00:07] Nxd5 is the strong threat.} (11. Qh3 $5) 11... Nf6 {[%emt 0:04:38][%cal Ob8c6]} 12. Rad1 {[%emt 0:02:51]} Nc6 {[%emt 0:04:48] Repels d4} 13. Nf3 {[%emt 0:16:25]} Qd6 {[%emt 0:06:35]} 14. Qh3 {[%emt 0:02:53]} Ne5 {[%emt 0:02:21]} 15. Nxe5 {[%emt 0:10:05]} Qxe5 {[%emt 0:04:09]} 16. Be2 {[%emt 0:00:02]} Rad8 {[%emt 0:04:33]} 17. Ba1 {[%emt 0:08:13]} Qg5 {[%emt 0:10:57]} 18. f4 {[%emt 0:01:44]} Qf5 {[%emt 0:01:18]} 19. g4 {[%emt 0:00:52]} Qg6 {[%emt 0:00:05]} 20. d3 {[%emt 0:00:48]} Nd5 {[%emt 0:04:41]} (20... h5 $15 21. g5 Ng4) 21. g5 $11 {[%emt 0:14:10]} Nxc3 {[%emt 0:12:28]} 22. Bxc3 {[%emt 0:00:22]} Qf5 {[%emt 0:07:09]} (22... h6 $11 {keeps the balance.} 23. Bh5 Qf5 24. Qxf5 exf5) 23. Bg4 $1 $16 {[%emt 0:00:02]} Qd5 {[%emt 0:01:19]} (23... Qg6 $14) 24. e4 {[%emt 0:00:05]} (24. Rf3 $142) 24... Qc6 {[%emt 0:00:32][%cal Oc5c4]} 25. Rf3 {[%emt 0:06:17] White is more active.} (25. f5 $16 Bxg5 26. fxe6 fxe6 27. Bxe6+ Kh8 28. Rf5 Be3+ 29. Kg2 Rxf5 (29... Qxe6 $2 30. Rxf8+ Rxf8 31. Qxe6 $18) 30. Bxf5) 25... c4 $1 $11 {[%emt 0:01:42]} 26. bxc4 {[%emt 0:02:58]} Qc5+ {[%emt 0:00:42]} 27. Rf2 {[%emt 0:06:08]} b5 $1 {[%emt 0:02:10]} 28. Rb1 $40 {[%emt 0:10:17][%mdl 128] White attacks.} bxc4 {[%emt 0:07:08]} 29. d4 {[%emt 0:04:09]} (29. Rxb7 Rxd3 30. Bb4 Qc6 $17) 29... Qc7 {[%emt 0:02:28]} 30. Re1 {[%emt 0:00:02]} a5 {[%emt 0:05:11]} (30... Bc8 $11) 31. Re3 $2 {[%emt 0:00:02] [#]} (31. f5 $16 Bc8 32. f6 (32. fxe6 fxe6 33. Bxe6+ Bxe6 $14)) 31... e5 {[%emt 0:01:46][%mdl 8192] A mistake that costs the game.} 32. fxe5 {[%emt 0:01:06]} (32. dxe5 $2 {perishes.} Bc5 33. Kg2 Bxe3 34. Qxe3 Rd3 $19) (32. Bf5 $142 {[%csl Gf5][%cal Rh3h7]} h6 (32... exf4 33. Qxh7#) (32... g6 $2 33. Qh6 $18) 33. d5 (33. gxh6 g6 $18) (33. fxe5 Bb4 $18) (33. dxe5 Bc5 $11)) 32... Bxg5 {[%emt 0:00:17] [#]} (32... Bc8 $142 33. Bxc8 Qxc8 34. Qxc8 (34. Bxa5 Rxd4 35. Kg2 Bxg5 $17) 34... Rxc8) 33. Bf5 $1 $18 {[%emt 0:01:44][%csl Gf5][%cal Rh3h7]} h6 {[%emt 0:00:18]} (33... g6 34. Rg3 Qe7) 34. Rg3 {[%emt 0:00:02][%cal Be3g3,Bg3g5,Bg5g6][%mdl 32] Strongly threatening Rxg5!} g6 {[%emt 0:00:58] [#]} 35. d5 $1 {[%emt 0:01:33]} Qb6 {[%emt 0:02:03] [#]} (35... Bxd5 36. Rxg5) 36. e6 $1 {[%emt 0:00:56][%cal Og3g5] Rxg5! would kill now.} fxe6 {[%emt 0:04:05] [#]} (36... Qb1+ 37. Rf1) 37. Rxg5 $1 {[%emt 0:00:08][%mdl 512] White mates.} Rxf5 {[%emt 0:01:26]} 38. Rxg6+ {[%emt 0:00:16]} Kf7 {[%emt 0:00:22]} 39. Qxf5+ {[%emt 0:00:31] Weighted Error Value: White=0.20 (precise) /Black=0.59.  Loses game:     	---       	Black=1      Mistake:       	White=4     	Black=6      Inaccurate:     	White=1     	---        OK:         	White=11    	Black=10     Best:        	White=2     	Black=2      Strong:       	White=2     	Black=2} (39. dxe6+ $142 Ke7 40. Qxf5 Rd1+ 41. Kg2 Rg1+ 42. Kxg1 Qb1+ 43. Rf1 Qb6+ 44. Kh1) 1-0

[Event "SixDays Budapest IM-A 10-2024"]
[Site "Budapest"]
[Date "2024.10.01"]
[Round "2.2"]
[White "Pavan Karthikeya Varma Gunturi"]
[Black "Li, Xueyi"]
[Result "0-1"]
[ECO "B11"]
[WhiteElo "2056"]
[BlackElo "2187"]
[Annotator "RC"]
[PlyCount "83"]
[EventDate "2024.09.24"]
[EventType "tourn"]
[EventCountry "HUN"]
[SourceTitle "playchess.com"]
[Source "ChessBase"]
[SourceQuality "1"]
[TimeControl "5400+30"]

1. e4 {[%emt 0:00:07]} c6 {[%emt 0:00:02]} 2. Nf3 {[%emt 0:00:17]} d5 {[%emt 0:00:28]} 3. Nc3 {[%emt 0:00:16]} Bg4 {[%emt 0:00:41]} 4. h3 {[%emt 0:00:14]} Bxf3 {[%emt 0:00:07]} 5. Qxf3 {[%emt 0:00:08]} e6 {[%emt 0:00:04]} 6. Be2 {[%emt 0:00:18]} Nf6 {[%emt 0:00:20]} 7. O-O {[%emt 0:02:09]} Bc5 {[%emt 0:03:43]} 8. d3 {[%emt 0:04:13]} Nbd7 {[%emt 0:05:28]} 9. Qg3 {[%emt 0:11:01]} O-O {[%emt 0:02:22]} 10. Bf3 {[%emt 0:07:25]} Kh8 {[%emt 0:02:40]} 11. Qf4 {[%emt 0:04:51]} Qb8 {[%emt 0:02:21]} 12. Qxb8 {[%emt 0:01:54]} Raxb8 {[%emt 0:00:26]} 13. Bf4 {[%emt 0:02:34]} Rbc8 {[%emt 0:00:49]} 14. Na4 {[%emt 0:08:30]} Bd4 {[%emt 0:03:11]} 15. c3 {[%emt 0:05:11]} Be5 {[%emt 0:00:19]} 16. Be3 {[%emt 0:03:40]} dxe4 {[%emt 0:02:02]} 17. Bxe4 {[%emt 0:06:07]} Bd6 {[%emt 0:27:28]} 18. c4 {[%emt 0:04:33]} Be7 {[%emt 0:06:48]} 19. Nc3 {[%emt 0:05:42]} Nc5 {[%emt 0:01:52]} 20. b4 {[%emt 0:08:37]} Ncxe4 {[%emt 0:04:14]} 21. Nxe4 {[%emt 0:00:39]} Nxe4 {[%emt 0:04:32]} 22. dxe4 {[%emt 0:00:07]} Bxb4 {[%emt 0:00:21]} 23. Bxa7 {[%emt 0:02:25]} c5 {[%emt 0:08:24]} 24. a3 {[%emt 0:03:32]} Bc3 {[%emt 0:00:09]} 25. Rab1 {[%emt 0:00:27]} Rc7 {[%emt 0:00:06]} 26. Bb6 {[%emt 0:03:09]} Rc6 {[%emt 0:00:50]} 27. Ba7 {[%emt 0:01:02]} Bd4 {[%emt 0:06:54]} 28. Rxb7 {[%emt 0:01:34]} h6 {[%emt 0:00:06]} 29. Rfb1 {[%emt 0:04:18]} Ra6 {[%emt 0:01:30]} 30. Rc7 {[%emt 0:03:43]} Ra5 {[%emt 0:00:43]} 31. Bb6 {[%emt 0:01:47]} Rb8 {[%emt 0:00:38]} 32. Rd7 {[%emt 0:03:50]} Rxa3 {[%emt 0:00:34]} 33. Rxd4 {[%emt 0:01:14]} cxd4 {[%emt 0:00:14]} 34. c5 {[%emt 0:00:07]} Rc3 {[%emt 0:00:19]} 35. Rd1 {[%emt 0:00:30]} e5 {[%emt 0:00:50]} 36. Bc7 {[%emt 0:00:24]} Re8 {[%emt 0:00:05]} 37. Bd6 {[%emt 0:00:29]} f6 {[%emt 0:00:20]} 38. Kf1 {[%emt 0:00:22]} Rc2 {[%emt 0:01:28]} 39. Rb1 {[%emt 0:00:25]} Ra8 {[%emt 0:02:36]} 40. f4 {[%emt 0:00:20]} exf4 {[%emt 0:00:14]} 41. Rd1 {[%emt 0:00:16]} Raa2 {[%emt 0:00:53]} 42. Rxd4 0-1

[Event "SixDays Budapest IM-A 10-2024"]
[Site "Budapest"]
[Date "2024.10.01"]
[Round "2.3"]
[White "Chubakov, Sultan"]
[Black "Zia, Tahsin Tajwar"]
[Result "1-0"]
[ECO "E10"]
[WhiteElo "2265"]
[BlackElo "2255"]
[Annotator "RC"]
[PlyCount "83"]
[EventDate "2024.09.24"]
[EventType "tourn"]
[EventCountry "HUN"]
[SourceTitle "playchess.com"]
[Source "ChessBase"]
[SourceQuality "1"]
[TimeControl "5400+30"]

1. d4 {[%emt 0:00:14]} Nf6 {[%emt 0:00:11]} 2. c4 {[%emt 0:00:50]} e6 {[%emt 0:00:05]} 3. Nf3 {[%emt 0:00:24]} d5 {[%emt 0:00:06]} 4. g3 {[%emt 0:00:06]} Bb4+ {[%emt 0:01:10]} 5. Bd2 {[%emt 0:00:09]} Be7 {[%emt 0:00:25]} 6. Bg2 {[%emt 0:00:08]} Nbd7 {[%emt 0:00:21]} 7. Qc2 {[%emt 0:02:22]} c6 {[%emt 0:00:10]} 8. O-O {[%emt 0:00:44]} O-O {[%emt 0:00:05]} 9. Bf4 {[%emt 0:02:15]} a5 {[%emt 0:00:07]} 10. Rd1 {[%emt 0:04:38]} h6 {[%emt 0:01:12]} 11. b3 {[%emt 0:07:20]} a4 {[%emt 0:01:13]} 12. Nc3 {[%emt 0:01:58]} a3 {[%emt 0:01:39]} 13. e4 {[%emt 0:01:21]} dxe4 {[%emt 0:19:50]} 14. Nxe4 {[%emt 0:00:35]} Nxe4 {[%emt 0:00:08]} 15. Qxe4 {[%emt 0:00:04]} Qa5 {[%emt 0:00:39]} 16. Rac1 {[%emt 0:04:13]} Nf6 {[%emt 0:13:42]} 17. Qe2 {[%emt 0:05:42]} Bd7 {[%emt 0:03:08]} 18. Ne5 {[%emt 0:01:14]} Be8 {[%emt 0:05:25]} 19. h4 {[%emt 0:06:17]} Rd8 {[%emt 0:03:43]} 20. Rb1 {[%emt 0:05:12]} Bb4 {[%emt 0:03:47]} 21. Qc2 {[%emt 0:07:34]} Nh5 {[%emt 0:15:54]} 22. Be3 {[%emt 0:05:33]} f5 {[%emt 0:00:56]} 23. Nd3 {[%emt 0:03:49]} f4 {[%emt 0:08:07]} 24. Bxf4 {[%emt 0:07:37]} Nxf4 {[%emt 0:00:33]} 25. Nxf4 {[%emt 0:00:09]} Rxf4 {[%emt 0:00:10]} 26. gxf4 {[%emt 0:00:04]} Qh5 {[%emt 0:00:04]} 27. Qe4 {[%emt 0:08:21]} Bg6 {[%emt 0:02:25]} 28. Qxe6+ {[%emt 0:00:28]} Kh8 {[%emt 0:00:25]} 29. Bf3 {[%emt 0:08:02]} Qxf3 {[%emt 0:00:44]} 30. Qxg6 {[%emt 0:00:04]} Rd6 {[%emt 0:03:50]} 31. Qg2 {[%emt 0:02:51]} Qe2 {[%emt 0:01:34]} 32. Kh1 {[%emt 0:03:35]} Qh5 {[%emt 0:08:18]} 33. Rd3 {[%emt 0:01:39]} Qxh4+ {[%emt 0:00:37]} 34. Qh2 {[%emt 0:00:35]} Qe7 {[%emt 0:01:01]} 35. Rg1 {[%emt 0:02:32]} Rg6 {[%emt 0:02:41]} 36. Re3 {[%emt 0:03:45]} Qf6 {[%emt 0:00:26]} 37. Rxg6 {[%emt 0:00:55]} Qxg6 {[%emt 0:00:02]} 38. Qg3 {[%emt 0:01:17]} Qf7 {[%emt 0:02:37]} 39. Qg4 {[%emt 0:02:08]} Bd6 {[%emt 0:00:28]} 40. f5 {[%emt 0:01:17]} g5 {[%emt 0:01:49]} 41. fxg6 {[%emt 0:01:01]} Qxf2 {[%emt 0:00:16]} 42. g7+ {[%emt 0:00:04]} 1-0

[Event "SixDays Budapest IM-A 10-2024"]
[Site "Budapest"]
[Date "2024.10.01"]
[Round "2.4"]
[White "Pribelszky, Bence Daniel"]
[Black "Kwon, Sehyun"]
[Result "1-0"]
[ECO "C54"]
[WhiteElo "2408"]
[BlackElo "2248"]
[Annotator "RC"]
[PlyCount "65"]
[EventDate "2024.09.24"]
[EventType "tourn"]
[EventCountry "HUN"]
[SourceTitle "playchess.com"]
[Source "ChessBase"]
[SourceQuality "1"]
[TimeControl "5400+30"]

1. e4 {[%emt 0:00:09]} e5 {[%emt 0:03:30]} 2. Nf3 {[%emt 0:00:12]} Nc6 {[%emt 0:00:06]} 3. Bc4 {[%emt 0:00:07]} Bc5 {[%emt 0:00:43]} 4. c3 {[%emt 0:00:18]} Nf6 {[%emt 0:00:25]} 5. d3 a5 {[%emt 0:03:36]} 6. Nbd2 {[%emt 0:00:43]} d6 {[%emt 0:01:20]} 7. O-O {[%emt 0:01:32]} O-O {[%emt 0:00:28]} 8. h3 {[%emt 0:00:26]} Ba7 {[%emt 0:04:45]} 9. Re1 {[%emt 0:00:22]} Ne7 {[%emt 0:04:03]} 10. Bb3 {[%emt 0:03:17]} Ng6 {[%emt 0:01:11]} 11. d4 {[%emt 0:05:54]} b5 {[%emt 0:16:42]} 12. a4 {[%emt 0:10:01]} c6 {[%emt 0:01:45]} 13. Nf1 {[%emt 0:03:40]} h6 {[%emt 0:09:36]} 14. Ng3 {[%emt 0:01:26]} Qc7 {[%emt 0:03:42]} 15. Be3 {[%emt 0:05:23]} Re8 {[%emt 0:03:11]} 16. Qd2 {[%emt 0:06:55]} Be6 {[%emt 0:14:10]} 17. Bc2 {[%emt 0:00:30]} Kh7 {[%emt 0:00:30]} 18. axb5 {[%emt 0:00:30]} cxb5 {[%emt 0:00:30]} 19. Nf5 {[%emt 0:00:30]} Bxf5 {[%emt 0:00:30]} 20. exf5 {[%emt 0:00:30]} Nf8 {[%emt 0:00:30]} 21. Nh2 {[%emt 0:00:30]} Kg8 {[%emt 0:00:30]} 22. Ng4 {[%emt 0:00:30]} N8h7 {[%emt 0:00:30]} 23. Bb3 {[%emt 0:00:30]} a4 {[%emt 0:00:30]} 24. Ba2 {[%emt 0:00:30]} Qd7 {[%emt 0:00:30]} 25. dxe5 {[%emt 0:00:30]} dxe5 {[%emt 0:00:30]} 26. Qxd7 {[%emt 0:00:30]} Nxd7 {[%emt 0:00:30]} 27. Bd5 {[%emt 0:00:30]} Bxe3 {[%emt 0:00:30]} 28. Bxa8 {[%emt 0:00:30]} Rxa8 {[%emt 0:00:30]} 29. Rxe3 {[%emt 0:00:30]} f6 {[%emt 0:00:30]} 30. Re4 {[%emt 0:00:30]} Nb6 {[%emt 0:00:30]} 31. Rb4 {[%emt 0:00:30]} Ra5 {[%emt 0:00:30]} 32. Ne3 {[%emt 0:00:30]} Ng5 {[%emt 0:00:30]} 33. b3 {[%emt 0:00:30]} 1-0

[Event "SixDays Budapest IM-A 10-2024"]
[Site "Budapest"]
[Date "2024.10.01"]
[Round "2.5"]
[White "Kustar, Sandor"]
[Black "Polyik, Peter"]
[Result "1/2-1/2"]
[ECO "A09"]
[WhiteElo "2252"]
[BlackElo "2304"]
[Annotator "RC"]
[PlyCount "47"]
[EventDate "2024.09.24"]
[EventType "tourn"]
[EventCountry "HUN"]
[SourceTitle "playchess.com"]
[Source "ChessBase"]
[SourceQuality "1"]
[TimeControl "5400+30"]

1. Nf3 {[%emt 0:00:04]} d5 {[%emt 0:02:31]} 2. c4 {[%emt 0:00:14]} d4 {[%emt 0:00:41]} 3. g3 {[%emt 0:00:24]} Nc6 {[%emt 0:00:33]} 4. Bg2 {[%emt 0:01:03]} e5 {[%emt 0:00:07]} 5. O-O {[%emt 0:00:33]} e4 {[%emt 0:01:33]} 6. Ne1 {[%emt 0:00:17]} h5 {[%emt 0:00:21]} 7. d3 {[%emt 0:09:16]} e3 {[%emt 0:03:56]} 8. fxe3 {[%emt 0:04:58]} h4 {[%emt 0:00:23]} 9. Nf3 {[%emt 0:11:35]} hxg3 {[%emt 0:01:51]} 10. hxg3 {[%emt 0:03:53]} Bg4 {[%emt 0:24:31]} 11. exd4 {[%emt 0:24:57]} Nxd4 {[%emt 0:04:40]} 12. Be3 {[%emt 0:00:34]} Bc5 {[%emt 0:08:18]} 13. Qd2 {[%emt 0:00:08]} Bxf3 {[%emt 0:01:10]} 14. exf3 {[%emt 0:01:38]} Qd6 {[%emt 0:00:22]} 15. Nc3 {[%emt 0:10:17]} Qxg3 {[%emt 0:08:15]} 16. Ne4 {[%emt 0:00:14]} Qh2+ {[%emt 0:00:06]} 17. Kf2 {[%emt 0:00:08]} Qh4+ {[%emt 0:00:06]} 18. Kg1 {[%emt 0:00:05]} Qh2+ {[%emt 0:32:50]} 19. Kf2 {[%emt 0:00:06]} Qh4+ {[%emt 0:00:02]} 20. Kg1 {[%emt 0:00:06]} Bb4 21. Qd1 Nf5 22. Qa4+ c6 23. Qxb4 Nxe3 24. Qxb7 1/2-1/2

[Event "SixDays Budapest IM-A 10-2024"]
[Site "Budapest"]
[Date "2024.10.01"]
[Round "3.1"]
[White "Valkova, Angelika"]
[Black "Pribelszky, Bence Daniel"]
[Result "0-1"]
[ECO "A40"]
[WhiteElo "2068"]
[BlackElo "2408"]
[Annotator "RC"]
[PlyCount "48"]
[EventDate "2024.09.24"]
[EventType "tourn"]
[EventCountry "HUN"]
[SourceTitle "playchess.com"]
[Source "ChessBase"]
[SourceQuality "1"]
[TimeControl "5400+30"]

1. d4 {[%emt 0:00:03]} g6 {[%emt 0:02:11]} 2. c4 {[%emt 0:00:06]} Bg7 {[%emt 0:00:06]} 3. Nc3 {[%emt 0:00:24]} c5 {[%emt 0:00:07]} 4. Nf3 {[%emt 0:00:07]} cxd4 {[%emt 0:00:51]} 5. Nxd4 {[%emt 0:00:07]} Nc6 {[%emt 0:00:33]} 6. Nxc6 {[%emt 0:01:16]} bxc6 {[%emt 0:00:21]} 7. Qd2 {[%emt 0:01:32]} Nf6 {[%emt 0:03:39]} 8. g3 {[%emt 0:02:25]} Ba6 {[%emt 0:02:29]} 9. e4 {[%emt 0:00:13]} O-O {[%emt 0:04:17]} 10. Rb1 {[%emt 0:09:15]} Rc8 {[%emt 0:19:46]} 11. b3 {[%emt 0:03:25]} d5 {[%emt 0:04:36]} 12. cxd5 {[%emt 0:02:14]} Bxf1 {[%emt 0:00:18]} 13. Kxf1 {[%emt 0:00:07]} cxd5 {[%emt 0:00:57]} 14. e5 {[%emt 0:11:17]} Ng4 {[%emt 0:05:10]} 15. Nxd5 {[%emt 0:02:05]} Rc5 {[%emt 0:07:16]} 16. Ne3 {[%emt 0:04:49]} Qa8 {[%emt 0:00:25]} 17. Ng2 {[%emt 0:00:11]} Qe4 {[%emt 0:03:01]} 18. Ra1 {[%emt 0:02:22]} Rc2 {[%emt 0:00:23]} 19. Qe1 {[%emt 0:01:28]} Rxf2+ {[%emt 0:00:33]} 20. Qxf2 {[%emt 0:00:05]} Nxf2 {[%emt 0:00:08]} 21. Kxf2 {[%emt 0:00:05]} Qc2+ {[%emt 0:01:10]} 22. Kf3 {[%emt 0:00:45]} Bxe5 {[%emt 0:00:29]} 23. Bh6 {[%emt 0:00:09]} Bxa1 {[%emt 0:00:15]} 24. Bxf8 {[%emt 0:00:09]} Kxf8 {[%emt 0:00:06]} 0-1

[Event "SixDays Budapest IM-A 10-2024"]
[Site "Budapest"]
[Date "2024.10.01"]
[Round "3.2"]
[White "Polyik, Peter"]
[Black "Pavan Karthikeya Varma Gunturi"]
[Result "1-0"]
[ECO "A15"]
[WhiteElo "2304"]
[BlackElo "2056"]
[Annotator "RC"]
[PlyCount "105"]
[EventDate "2024.09.24"]
[EventType "tourn"]
[EventCountry "HUN"]
[SourceTitle "playchess.com"]
[Source "ChessBase"]
[SourceQuality "1"]
[TimeControl "5400+30"]

1. c4 {[%emt 0:00:03]} Nf6 {[%emt 0:00:38]} 2. g3 {[%emt 0:00:11]} e6 {[%emt 0:01:17]} 3. Bg2 {[%emt 0:00:06]} Nc6 {[%emt 0:01:19]} 4. Nf3 {[%emt 0:01:26]} b6 {[%emt 0:01:14]} 5. O-O {[%emt 0:00:38]} Bb7 {[%emt 0:01:31]} 6. d4 {[%emt 0:00:24]} d5 {[%emt 0:04:18]} 7. cxd5 {[%emt 0:03:43]} exd5 {[%emt 0:00:11]} 8. Nc3 {[%emt 0:05:45]} Be7 {[%emt 0:02:52]} 9. Bf4 {[%emt 0:02:31]} O-O {[%emt 0:02:06]} 10. Rc1 {[%emt 0:06:22]} a6 {[%emt 0:02:34]} 11. Ne5 {[%emt 0:02:36]} Na7 {[%emt 0:06:39]} 12. Qb3 {[%emt 0:04:23]} b5 {[%emt 0:10:11]} 13. Rfd1 {[%emt 0:02:42]} Nc8 {[%emt 0:02:00]} 14. Na4 {[%emt 0:07:30]} Nb6 {[%emt 0:12:55]} 15. Nc5 {[%emt 0:08:33]} Qc8 {[%emt 0:03:34]} 16. Qc2 {[%emt 0:01:32]} Nc4 {[%emt 0:03:06]} 17. b3 {[%emt 0:03:48]} Bxc5 {[%emt 0:03:23]} 18. dxc5 {[%emt 0:00:34]} Nxe5 {[%emt 0:00:46]} 19. Bxe5 {[%emt 0:00:05]} Qe6 {[%emt 0:01:44]} 20. c6 {[%emt 0:07:51]} Qxe5 {[%emt 0:02:02]} 21. cxb7 {[%emt 0:00:05]} Rab8 {[%emt 0:00:25]} 22. Qxc7 {[%emt 0:00:07]} Qe6 {[%emt 0:04:23]} 23. Rd2 {[%emt 0:03:46]} Rfd8 {[%emt 0:03:00]} 24. Rdc2 {[%emt 0:00:36]} Qe8 {[%emt 0:01:17]} 25. Qxb8 {[%emt 0:00:49]} Rxb8 {[%emt 0:00:14]} 26. Rc8 {[%emt 0:00:06]} Rxb7 {[%emt 0:00:43]} 27. Rxe8+ {[%emt 0:00:12]} Nxe8 {[%emt 0:00:06]} 28. Bxd5 {[%emt 0:02:18]} Re7 {[%emt 0:00:13]} 29. e3 {[%emt 0:00:08]} g6 {[%emt 0:00:44]} 30. b4 {[%emt 0:01:09]} Rc7 {[%emt 0:00:47]} 31. Rxc7 {[%emt 0:00:28]} Nxc7 {[%emt 0:00:03]} 32. Bb7 {[%emt 0:00:33]} Kg7 {[%emt 0:00:34]} 33. Kf1 {[%emt 0:00:20]} Kf6 {[%emt 0:00:12]} 34. Ke2 {[%emt 0:00:05]} Ke6 {[%emt 0:00:57]} 35. Kd3 {[%emt 0:00:06]} Ke5 {[%emt 0:01:20]} 36. f4+ {[%emt 0:00:22]} Kd6 {[%emt 0:00:06]} 37. e4 {[%emt 0:00:06]} f6 {[%emt 0:00:17]} 38. Bc8 {[%emt 0:00:14]} Kc6 {[%emt 0:00:29]} 39. Kd4 {[%emt 0:00:06]} h6 {[%emt 0:02:19]} 40. a3 {[%emt 0:01:49]} Kd6 {[%emt 0:00:28]} 41. e5+ {[%emt 0:00:45]} fxe5+ {[%emt 0:00:08]} 42. fxe5+ {[%emt 0:00:03]} Ke7 {[%emt 0:00:17]} 43. Kc5 {[%emt 0:00:06]} Kd8 {[%emt 0:00:11]} 44. Bh3 {[%emt 0:00:19]} Ke7 {[%emt 0:00:07]} 45. Kb6 {[%emt 0:00:40]} Nd5+ {[%emt 0:00:13]} 46. Kxa6 {[%emt 0:00:05]} Nc3 {[%emt 0:00:10]} 47. Bf1 {[%emt 0:02:26]} Nb1 {[%emt 0:00:20]} 48. Bxb5 {[%emt 0:00:06]} Nxa3 {[%emt 0:00:12]} 49. Bd3 {[%emt 0:00:05]} Ke6 {[%emt 0:00:33]} 50. Ka5 {[%emt 0:00:04]} Kxe5 {[%emt 0:00:04]} 51. Ka4 {[%emt 0:00:03]} Kd4 {[%emt 0:00:08]} 52. Kxa3 {[%emt 0:00:04]} Kxd3 {[%emt 0:00:10]} 53. b5 {[%emt 0:00:04]} 1-0

[Event "SixDays Budapest IM-A 10-2024"]
[Site "Budapest"]
[Date "2024.10.01"]
[Round "3.3"]
[White "Kwon, Sehyun"]
[Black "Kustar, Sandor"]
[Result "0-1"]
[ECO "B23"]
[WhiteElo "2248"]
[BlackElo "2252"]
[Annotator "RC"]
[PlyCount "86"]
[EventDate "2024.09.24"]
[EventType "tourn"]
[EventCountry "HUN"]
[SourceTitle "playchess.com"]
[Source "ChessBase"]
[SourceQuality "1"]
[TimeControl "5400+30"]

1. e4 {[%emt 0:01:00]} c5 {[%emt 0:00:08]} 2. Nc3 {[%emt 0:01:28]} a6 {[%emt 0:05:41]} 3. g3 {[%emt 0:01:20]} g6 {[%emt 0:04:05]} 4. Nge2 {[%emt 0:05:37]} Bg7 {[%emt 0:04:49]} 5. d4 {[%emt 0:00:59]} cxd4 {[%emt 0:06:13]} 6. Nxd4 {[%emt 0:00:07]} d6 {[%emt 0:00:59]} 7. Bg2 {[%emt 0:00:26]} Nf6 {[%emt 0:01:52]} 8. O-O {[%emt 0:02:00]} O-O {[%emt 0:02:57]} 9. h3 {[%emt 0:01:06]} Nc6 {[%emt 0:01:42]} 10. Nde2 {[%emt 0:02:41]} Rb8 {[%emt 0:01:10]} 11. Be3 {[%emt 0:01:29]} b5 {[%emt 0:01:14]} 12. a4 {[%emt 0:09:00]} b4 {[%emt 0:00:43]} 13. Nd5 {[%emt 0:00:21]} Nd7 {[%emt 0:00:14]} 14. Rb1 {[%emt 0:00:59]} e6 {[%emt 0:10:06]} 15. Ndf4 {[%emt 0:01:24]} Qc7 {[%emt 0:00:09]} 16. b3 {[%emt 0:01:26]} Bb7 {[%emt 0:01:16]} 17. Qd2 {[%emt 0:01:07]} Nc5 {[%emt 0:00:30]} 18. g4 {[%emt 0:07:32]} Rfd8 {[%emt 0:02:14]} 19. Nd3 {[%emt 0:03:46]} a5 {[%emt 0:10:17]} 20. Ng3 {[%emt 0:07:46]} Rbc8 {[%emt 0:07:09]} 21. f4 {[%emt 0:06:37]} Ba6 {[%emt 0:00:57]} 22. Rfd1 {[%emt 0:03:39]} Nxd3 {[%emt 0:16:27]} 23. cxd3 {[%emt 0:00:28]} Nd4 {[%emt 0:00:25]} 24. Qf2 {[%emt 0:14:51]} e5 {[%emt 0:05:00]} 25. Bxd4 {[%emt 0:04:48]} exd4 {[%emt 0:00:03]} 26. Rd2 {[%emt 0:00:36]} Qc3 {[%emt 0:03:31]} 27. Bf1 {[%emt 0:00:22]} Rc7 {[%emt 0:00:05]} 28. Rbb2 {[%emt 0:01:11]} Qc5 {[%emt 0:01:38]} 29. Rbc2 {[%emt 0:12:06]} Qb6 {[%emt 0:00:23]} 30. Rc4 {[%emt 0:00:25]} Rc5 {[%emt 0:02:23]} 31. Bg2 {[%emt 0:02:48]} Re8 {[%emt 0:03:11]} 32. Rdc2 {[%emt 0:02:00]} Bxc4 {[%emt 0:01:51]} 33. dxc4 {[%emt 0:00:07]} Qd8 {[%emt 0:00:44]} 34. Rd2 {[%emt 0:01:03]} Qh4 {[%emt 0:01:47]} 35. Kh2 {[%emt 0:01:19]} h5 {[%emt 0:00:36]} 36. gxh5 {[%emt 0:02:01]} Bh6 {[%emt 0:00:12]} 37. hxg6 {[%emt 0:02:32]} fxg6 {[%emt 0:00:38]} 38. Rxd4 {[%emt 0:00:28]} Bxf4 {[%emt 0:00:32]} 39. e5 {[%emt 0:00:14]} Rf8 {[%emt 0:04:27]} 40. Rxd6 {[%emt 0:00:19]} Kg7 {[%emt 0:00:56]} 41. Be4 {[%emt 0:00:38]} Bxg3+ {[%emt 0:00:37]} 42. Qxg3 {[%emt 0:00:05]} Qxe4 {[%emt 0:00:18]} 43. Rd7+ {[%emt 0:00:53]} Kh6 {[%emt 0:00:12]} 0-1